fUST/lending_fUST_20250202
["ID","MTS","AMOUNT","RATE_DAILY","PERIOD"]
[351234315,1738463439031,-505.59372199,0.00016438,2]
[351234316,1738463439040,-123.28290959,0.00016438,2]
[351234317,1738463439052,-382.37403726,0.00016438,2]
[351234318,1738463439068,-502.84887048,0.00016438,2]
[351234319,1738463439078,-450.68598902,0.00016438,2]
[351234320,1738463439087,-500.0,0.00016438,2]
[351234321,1738463439097,-503.26340398,0.00016438,2]
[351234322,1738463439108,-503.86117618,0.00016438,2]
[351234323,1738463439117,-514.63598522,0.00016438,2]
[351234324,1738463439127,-503.87753644,0.00016438,2]
[351234325,1738463439136,-501.96583531,0.00016438,2]
[351234326,1738463439145,-500.0,0.00016438,2]
[351234327,1738463439155,-269.30526095,0.00016438,2]
[351234328,1738463439164,-502.39223482,0.00016438,2]
[351234329,1738463439174,-350.17588104,0.00016438,2]
[351234330,1738463439184,-501.08800508,0.00016438,2]
[351234331,1738463439194,-500.61293467,0.00016438,2]
[351234332,1738463439203,-508.04741902,0.00016438,2]
[351234333,1738463439213,-201.17176521,0.00016438,2]
[351234334,1738463439224,-502.10667941,0.00016438,2]
[351234335,1738463439233,-503.78172879,0.00016438,2]
[351234336,1738463439242,-252.96173036,0.00016438,2]
[351234337,1738463439252,-502.00482231,0.00016438,2]
[351234338,1738463439261,-500.0,0.00016438,2]
[351234339,1738463439271,-502.86265314,0.00016438,2]
[351234340,1738463439280,-501.05945748,0.00016438,2]
[351234341,1738463439290,-507.24815612,0.00016438,2]
[351234342,1738463439299,-502.77089488,0.00016438,2]
[351234343,1738463439310,-504.84265966,0.00016438,2]
[351234344,1738463439319,-500.0,0.00016438,2]
[351234345,1738463439329,-501.84817614,0.00016438,2]
[351234346,1738463439338,-459.80568531,0.00016438,2]
[351234347,1738463439347,-504.89331097,0.00016438,2]
[351234348,1738463439356,-503.19745152,0.00016438,2]
[351234349,1738463439365,-517.52000174,0.00016438,2]
[351234350,1738463439375,-504.85162174,0.00016438,2]
[351234351,1738463439387,-500.0,0.00016438,2]
[351234352,1738463439396,-501.50912199,0.00016438,2]
[351234353,1738463439406,-202.25178666,0.00016438,2]
[351234354,1738463439415,-315.29304478,0.00016438,2]
[351234355,1738463439425,-502.28064254,0.00016438,2]
[351234356,1738463439435,-500.0,0.00016438,2]
[351234357,1738463439444,-500.0,0.00016438,2]
[351234358,1738463439453,-500.0,0.00016438,2]
[351234359,1738463439462,-500.0,0.00016438,2]
[351234360,1738463439473,-503.5913887,0.00016438,2]
[351234361,1738463439483,-500.0,0.00016438,2]
[351234362,1738463439492,-503.9969487,0.00016438,2]
[351234363,1738463439504,-503.63334636,0.00016438,2]
[351234364,1738463439513,-505.55804393,0.00016438,2]
[351234365,1738463439523,-500.0,0.00016438,2]
[351234366,1738463439535,-500.0,0.00016438,2]
[351234367,1738463439545,-500.0,0.00016438,2]
[351234368,1738463439554,-500.0,0.00016438,2]
[351234369,1738463439566,-500.0,0.00016438,2]
[351234370,1738463439575,-500.0,0.00016438,2]
[351234371,1738463439584,-500.0,0.00016438,2]
[351234372,1738463439594,-500.0,0.00016438,2]
[351234373,1738463439603,-500.0,0.00016438,2]
[351234374,1738463439612,-500.0,0.00016438,2]
[351234375,1738463439621,-500.0,0.00016438,2]
[351234376,1738463439631,-500.0,0.00016438,2]
[351234377,1738463439641,-507.5317623,0.00016438,2]
[351234378,1738463439655,-100.45939545,0.00016438,2]
[351234379,1738463439668,-215.93853691,0.00016438,2]
[351234380,1738463439678,-500.0,0.00016438,2]
[351234381,1738463439687,-500.0,0.00016438,2]
[351234382,1738463439698,-513.09933811,0.00016438,2]
[351234383,1738463439708,-596.92747546,0.00016438,2]
[351234384,1738463439717,-517.54274188,0.00016438,2]
[351234385,1738463439729,-500.0,0.00016438,2]
[351234386,1738463439739,-500.0,0.00016438,2]
[351234387,1738463439749,-500.0,0.00016438,2]
[351234388,1738463439758,-500.0,0.00016438,2]
[351234389,1738463439767,-500.0,0.00016438,2]
[351234390,1738463439777,-500.0,0.00016438,2]
[351234391,1738463439787,-507.94244648,0.00016438,2]
[351234392,1738463439796,-500.0,0.00016438,2]
[351234393,1738463439808,-500.0,0.00016438,2]
[351234394,1738463439818,-500.0,0.00016438,2]
[351234395,1738463439827,-500.0,0.00016438,2]
[351234396,1738463439837,-500.0,0.00016438,2]
[351234398,1738463439847,-500.0,0.00016438,2]
[351234400,1738463439857,-500.0,0.00016438,2]
[351234402,1738463439866,-506.8224649,0.00016438,2]
[351234403,1738463439875,-500.0,0.00016438,2]
[351234404,1738463439885,-486.61859352,0.00016438,2]
[351234405,1738463439895,-500.0,0.00016438,2]
[351234406,1738463439905,-500.0,0.00016438,2]
[351234407,1738463439914,-500.0,0.00016438,2]
[351234408,1738463439924,-500.0,0.00016438,2]
[351234409,1738463439933,-282.05,0.00016438,2]
[351234410,1738463439943,-500.0,0.00016438,2]
[351234411,1738463439953,-506.01028463,0.00016438,2]
[351234412,1738463439962,-500.0,0.00016438,2]
[351234413,1738463439976,-500.0,0.00016438,2]
[351234414,1738463439985,-500.0,0.00016438,2]
[351234415,1738463439995,-500.0,0.00016438,2]
[351234416,1738463440005,-515.97259155,0.00016438,2]
[351234417,1738463440014,-501.33135501,0.00016438,2]
[351234418,1738463440023,-501.91567563,0.00016438,2]
[351234419,1738463440033,-1639.78,0.00016438,2]
[351234421,1738463440043,-332.07376912,0.00016438,2]
[351234422,1738463440052,-508.67237825,0.00016438,2]
[351234423,1738463440065,-500.0,0.00016438,2]
[351234424,1738463440074,-500.0,0.00016438,2]
[351234425,1738463440085,-500.0,0.00016438,2]
[351234427,1738463440094,-500.0,0.00016438,2]
[351234429,1738463440104,-507.66398135,0.00016438,2]
[351234430,1738463440113,-500.0,0.00016438,2]
[351234431,1738463440123,-500.0,0.00016438,2]
[351234432,1738463440132,-500.0,0.00016438,2]
[351234433,1738463440142,-502.33923035,0.00016438,2]
[351234434,1738463440152,-503.11633516,0.00016438,2]
[351234435,1738463440162,-982.62670816,0.00016438,2]
[351234436,1738463440175,-1184.16329184,0.00016438,2]
[351234437,1738463440185,-500.0,0.00016438,2]
[351234438,1738463440196,-500.0,0.00016438,2]
[351234439,1738463440205,-500.0,0.00016438,2]
[351234440,1738463440215,-500.0,0.00016438,2]
[351234441,1738463440224,-500.0,0.00016438,2]
[351234442,1738463440234,-500.0,0.00016438,2]
[351234443,1738463440243,-500.0,0.00016438,2]
[351234444,1738463440252,-625.67093214,0.00016438,2]
[351234446,1738463440262,-500.0,0.00016438,2]
[351234447,1738463440272,-500.0,0.00016438,2]
[351234448,1738463440282,-500.0,0.00016438,2]
[351234449,1738463440291,-500.0,0.00016438,2]
[351234450,1738463440303,-500.0,0.00016438,2]
[351234452,1738463440315,-500.0,0.00016438,2]
[351234453,1738463440324,-327.20153251,0.00016438,2]
[351234459,1738463440463,-172.79846749,0.00016438,2]
[351234460,1738463440472,-500.0,0.00016438,2]
[351234461,1738463440482,-175.15318485,0.00016438,2]
[351234462,1738463440531,-324.84681515,0.00016438,2]
[351234463,1738463440541,-500.0,0.00016438,2]
[351234464,1738463440550,-500.0,0.00016438,2]
[351234465,1738463440562,-500.0,0.00016438,2]
[351234466,1738463440571,-500.0,0.00016438,2]
[351234467,1738463440581,-500.0,0.00016438,2]
[351234469,1738463440590,-500.0,0.00016438,2]
[351234470,1738463440599,-500.0,0.00016438,2]
[351234471,1738463440608,-504.95458097,0.00016438,2]
[351234472,1738463440618,-534.4326025,0.00016438,2]
[351234473,1738463440627,-500.0,0.00016438,2]
[351234474,1738463440637,-503.28174335,0.00016438,2]
[351234475,1738463440649,-500.0,0.00016438,2]
[351234476,1738463440659,-425.06445523,0.00016438,2]
[351234477,1738463440669,-715.58,0.00016438,2]
[351234478,1738463440678,-715.58,0.00016438,2]
[351234479,1738463440689,-715.58,0.00016438,2]
[351234480,1738463440699,-715.58,0.00016438,2]
[351234481,1738463440710,-715.58,0.00016438,2]
[351234482,1738463440720,-500.0,0.00016438,2]
[351234483,1738463440728,-500.0,0.00016438,2]
[351234484,1738463440738,-500.0,0.00016438,2]
[351234485,1738463440748,-500.0,0.00016438,2]
[351234486,1738463440758,-500.0,0.00016438,2]
[351234487,1738463440767,-500.0,0.00016438,2]
[351234488,1738463440778,-500.0,0.00016438,2]
[351234489,1738463440787,-500.0,0.00016438,2]
[351234490,1738463440797,-504.92931895,0.00016438,2]
[351234491,1738463440809,-500.0,0.00016438,2]
[351234492,1738463440818,-500.0,0.00016438,2]
[351234493,1738463440827,-500.0,0.00016438,2]
[351234494,1738463440836,-500.0,0.00016438,2]
[351234495,1738463440846,-500.0,0.00016438,2]
[351234496,1738463440856,-502.10718508,0.00016438,2]
[351234497,1738463440865,-500.0,0.00016438,2]
[351234498,1738463440875,-500.0,0.00016438,2]
[351234499,1738463440885,-507.08789795,0.00016438,2]
[351234500,1738463440894,-502.76708689,0.00016438,2]
[351234501,1738463440904,-500.0,0.00016438,2]
[351234502,1738463440913,-501.65455518,0.00016438,2]
[351234503,1738463440924,-952.9,0.00016438,2]
[351234504,1738463440933,-500.0,0.00016438,2]
[351234505,1738463440943,-507.71889582,0.00016438,2]
[351234506,1738463440953,-500.0,0.00016438,2]
[351234507,1738463440963,-500.0,0.00016438,2]
[351234508,1738463440973,-500.0,0.00016438,2]
[351234509,1738463440983,-503.43855942,0.00016438,2]
[351234510,1738463440992,-500.0,0.00016438,2]
[351234511,1738463441002,-500.0,0.00016438,2]
[351234512,1738463441011,-500.0,0.00016438,2]
[351234513,1738463441020,-505.47658683,0.00016438,2]
[351234514,1738463441030,-510.64390092,0.00016438,2]
[351234515,1738463441039,-500.0,0.00016438,2]
[351234516,1738463441049,-500.0,0.00016438,2]
[351234517,1738463441062,-506.66287198,0.00016438,2]
[351234518,1738463441072,-500.0,0.00016438,2]
[351234519,1738463441083,-510.34636125,0.00016438,2]
[351234520,1738463441094,-506.82452803,0.00016438,2]
[351234521,1738463441104,-500.0,0.00016438,2]
[351234522,1738463441115,-504.74539627,0.00016438,2]
[351234523,1738463441124,-512.8260316,0.00016438,2]
[351234524,1738463441134,-500.0,0.00016438,2]
[351234525,1738463441144,-55.37626542,0.00016438,2]
[351234526,1738463441157,-444.62373458,0.00016438,2]
[351234527,1738463441168,-500.0,0.00016438,2]
[351234528,1738463441178,-500.0,0.00016438,2]
[351234529,1738463441187,-530.29758241,0.00016438,2]
[351234530,1738463441197,-544.31,0.00016438,2]
[351234531,1738463441208,-500.0,0.00016438,2]
[351234532,1738463441218,-2204.02,0.00016438,2]
[351234533,1738463441227,-509.65387411,0.00016438,2]
[351234534,1738463441237,-500.0,0.00016438,2]
[351234535,1738463441247,-505.70031755,0.00016438,2]
[351234536,1738463441256,-510.11064869,0.00016438,2]
[351234537,1738463441265,-500.0,0.00016438,2]
[351234538,1738463441274,-501.3313949,0.00016438,2]
[351234539,1738463441283,-703.9,0.00016438,2]
[351234540,1738463441293,-500.0,0.00016438,2]
[351234541,1738463441303,-500.0,0.00016438,2]
[351234542,1738463441316,-500.0,0.00016438,2]
[351234543,1738463441326,-500.0,0.00016438,2]
[351234544,1738463441335,-2239.35,0.00016438,2]
[351234545,1738463441344,-500.0,0.00016438,2]
[351234546,1738463441353,-909.71,0.00016438,2]
[351234547,1738463441363,-645.77,0.00016438,2]
[351234548,1738463441373,-500.0,0.00016438,2]
[351234549,1738463441383,-500.0,0.00016438,2]
[351234550,1738463441393,-207.67257652,0.00016438,2]
[351234551,1738463441402,-7836.57,0.00016438,2]
[351234552,1738463441413,-500.0,0.00016438,2]
[351234553,1738463441422,-1000.0,0.00016438,7]
[351234554,1738463441432,-500.0,0.00016438,2]
[351234555,1738463441442,-500.0,0.00016438,2]
[351234556,1738463441452,-500.0,0.00016438,2]
[351234557,1738463441462,-503.43512755,0.00016438,2]
[351234558,1738463441471,-500.0,0.00016438,2]
[351234559,1738463441480,-500.0,0.00016438,2]
[351234560,1738463441490,-500.0,0.00016438,2]
[351234561,1738463441499,-500.0,0.00016438,2]
[351234562,1738463441508,-500.0,0.00016438,2]
[351234563,1738463441517,-500.0,0.00016438,2]
[351234564,1738463441527,-500.0,0.00016438,2]
[351234565,1738463441536,-112.51335174,0.00016438,2]
[351234578,1738463443293,-387.48664826,0.00016438,2]
[351234579,1738463443302,-500.0,0.00016438,2]
[351234580,1738463443314,-14.31646925,0.00016438,2]
[351234581,1738463443325,-485.68353075,0.00016438,2]
[351234582,1738463443334,-500.0,0.00016438,2]
[351234583,1738463443344,-364.34463988,0.00016438,2]
[351234584,1738463443355,-135.65536012,0.00016438,2]
[351234585,1738463443365,-760.13,0.00016438,2]
[351234586,1738463443375,-500.0,0.00016438,2]
[351234587,1738463443384,-598.07084384,0.00016438,2]
[351234588,1738463443394,-264.94379604,0.00016438,2]
[351234604,1738463446254,-231.13200141,0.00016338,2]
[351234605,1738463446264,-60.17758171,0.00016438,2]
[351234606,1738463446276,-174.87862225,0.00016438,2]
[351234607,1738463446286,-1416.53,0.00016438,2]
[351234608,1738463446295,-500.0,0.00016438,2]
[351234609,1738463446304,-500.0,0.00016438,2]
[351234610,1738463446314,-500.0,0.00016438,2]
[351234611,1738463446323,-500.35305071,0.00016438,2]
[351234612,1738463446333,-500.0,0.00016438,2]
[351234613,1738463446342,-500.0,0.00016438,2]
[351234614,1738463446352,-154.43148681,0.00016438,2]
[351234615,1738463446365,-345.56851319,0.00016438,2]
[351234616,1738463446376,-500.0,0.00016438,2]
[351234617,1738463446385,-508.01822997,0.00016438,2]
[351234618,1738463446394,-500.0,0.00016438,2]
[351234619,1738463446403,-500.0,0.00016438,2]
[351234620,1738463446412,-505.67636131,0.00016438,2]
[351234621,1738463446422,-500.0,0.00016438,2]
[351234622,1738463446431,-500.0,0.00016438,2]
[351234623,1738463446440,-500.0,0.00016438,2]
[351234624,1738463446450,-505.76366311,0.00016438,2]
[351234625,1738463446459,-500.0,0.00016438,2]
[351234626,1738463446469,-500.0,0.00016438,2]
[351234627,1738463446478,-578.24,0.00016503,2]
[351234628,1738463446487,-500.0,0.00016503,2]
[351234629,1738463446497,-715.58,0.00016503,2]
[351234630,1738463446506,-500.0,0.00016503,2]
[351234631,1738463446515,-2024.07177063,0.00016504,2]
[351234632,1738463446526,-2618.36578087,0.00016504,2]
[351234633,1738463446538,-20257.5624485,0.00016504,2]
[351234634,1738463446548,-231.1320014,0.00016561,2]
[351234635,1738463446560,-500.0,0.00016574,2]
[351234636,1738463446571,-715.58,0.00016574,2]
[351234637,1738463446581,-715.58,0.00016574,2]
[351234638,1738463446590,-172.6875313,0.00016574,2]
[351234639,1738463446600,-180.31438292,0.00016574,2]
[351234640,1738463446609,-500.0,0.00016574,2]
[351234641,1738463446618,-500.0,0.00016574,2]
[351234642,1738463446628,-347.15773935,0.00016574,2]
[351234643,1738463446637,-500.0,0.00016575,2]
[351234644,1738463446648,-611.10371978,0.00016575,2]
[351234645,1738463446658,-152.87189063,0.00016575,2]
[351234646,1738463446667,-508.97922897,0.00016575,2]
[351234647,1738463446676,-154.60938885,0.00016575,2]
[351234648,1738463446687,-565.90550694,0.00016575,2]
[351234649,1738463446696,-513.50320746,0.00016575,2]
[351234650,1738463446705,-503.81775151,0.00016575,2]
[351234651,1738463446714,-503.86948478,0.00016575,2]
[351234652,1738463446723,-500.0,0.00016575,2]
[351234653,1738463446734,-504.255518,0.00016575,2]
[351234654,1738463446744,-500.0,0.00016575,2]
[351234655,1738463446753,-512.20532262,0.00016575,2]
[351234656,1738463446762,-514.08373538,0.00016575,2]
[351234657,1738463446771,-512.98962007,0.00016575,2]
[351234658,1738463446781,-500.0,0.00016575,2]
[351234659,1738463446790,-500.0,0.00016575,2]
[351234660,1738463446799,-500.0,0.00016575,2]
[351234661,1738463446808,-500.0,0.00016575,2]
[351234662,1738463446818,-368.51132509,0.00016575,2]
[351234663,1738463446830,-135.94465834,0.00016575,2]
[351234664,1738463446839,-500.0,0.00016575,2]
[351234665,1738463446849,-305.73491047,0.00016575,2]
[351234666,1738463446858,-500.0,0.00016575,2]
[351234667,1738463446867,-230.74552684,0.00016575,2]
[351234668,1738463619465,187.5707,0.00013973,2]
[351234669,1738463619917,7550.13073385,0.00020453,120]
[351234670,1738463653034,500.0,0.00014964,2]
[351234672,1738464146528,2267.27614883,0.00015,2]
[351234673,1738464468017,9159.2276445,0.00014778,2]
[351234675,1738464536725,24900.0,0.0001484,2]
[351234676,1738464540342,186.560351,0.00013973,2]
[351234695,1738464632571,-166.0,0.00015068,2]
[351234696,1738464632581,-685.122929,0.0001508,2]
[351234697,1738464632591,-150.42829089,0.000151,2]
[351234698,1738464632600,-417.43341001,0.00016075,2]
[351234699,1738464632610,-197.22729318,0.00016075,2]
[351234700,1738464632620,-289.40056843,0.00016237,2]
[351234701,1738464632629,-300.0,0.0001625,2]
[351234702,1738464632639,-4941.69618724,0.00016251,2]
[351234703,1738464632651,-1102.182512,0.00016251,2]
[351234704,1738464632674,-983.11593496,0.00016251,2]
[351234705,1738464632729,-4470.29220791,0.00016251,2]
[351234706,1738464632739,-332.8354844,0.00016338,2]
[351234707,1738464632749,-500.0,0.00016437,2]
[351234708,1738464632759,-500.0,0.00016437,2]
[351234709,1738464632769,-500.0,0.00016437,2]
[351234710,1738464632778,-500.0,0.00016437,2]
[351234711,1738464632787,-500.0,0.00016437,2]
[351234712,1738464632797,-409.51655498,0.00016437,2]
[351234713,1738464632807,-500.0,0.00016437,2]
[351234714,1738464632817,-500.0,0.00016437,2]
[351234715,1738464632827,-500.0,0.00016437,2]
[351234716,1738464632837,-500.0,0.00016437,2]
[351234717,1738464632848,-500.0,0.00016437,2]
[351234718,1738464632858,-500.0,0.00016437,2]
[351234719,1738464632868,-500.0,0.00016437,2]
[351234720,1738464632877,-500.0,0.00016437,2]
[351234721,1738464632888,-500.0,0.00016437,2]
[351234722,1738464632899,-500.0,0.00016437,2]
[351234723,1738464632910,-500.0,0.00016437,2]
[351234724,1738464632920,-500.0,0.00016437,2]
[351234725,1738464632930,-500.0,0.00016437,2]
[351234726,1738464632940,-500.0,0.00016437,2]
[351234727,1738464632950,-500.0,0.00016437,2]
[351234728,1738464632960,-500.0,0.00016437,2]
[351234729,1738464632970,-500.0,0.00016437,2]
[351234730,1738464632980,-500.0,0.00016437,2]
[351234731,1738464632990,-500.0,0.00016437,2]
[351234732,1738464633000,-500.0,0.00016437,2]
[351234733,1738464633015,-500.0,0.00016437,2]
[351234734,1738464633025,-500.0,0.00016437,2]
[351234735,1738464633036,-500.0,0.00016437,2]
[351234736,1738464633047,-500.0,0.00016437,2]
[351234737,1738464633058,-500.0,0.00016437,2]
[351234738,1738464633067,-500.0,0.00016437,2]
[351234739,1738464633078,-500.0,0.00016437,2]
[351234740,1738464633088,-500.0,0.00016437,2]
[351234741,1738464633098,-500.0,0.00016437,2]
[351234742,1738464633109,-500.0,0.00016437,2]
[351234743,1738464633119,-500.0,0.00016437,2]
[351234744,1738464633129,-500.0,0.00016437,2]
[351234745,1738464633141,-500.0,0.00016437,2]
[351234746,1738464633152,-500.0,0.00016437,2]
[351234747,1738464633162,-500.0,0.00016437,2]
[351234748,1738464633171,-500.0,0.00016437,2]
[351234749,1738464633182,-170.53343643,0.00016437,2]
[351234750,1738464633192,-500.0,0.00016437,2]
[351234751,1738464633202,-500.0,0.00016437,2]
[351234752,1738464633213,-500.0,0.00016437,2]
[351234753,1738464633224,-500.0,0.00016437,2]
[351234754,1738464633234,-500.0,0.00016437,2]
[351234755,1738464633245,-500.0,0.00016437,2]
[351234756,1738464633255,-181.89171841,0.00016437,2]
[351234757,1738464633265,-500.0,0.00016437,2]
[351234758,1738464633275,-500.0,0.00016437,2]
[351234759,1738464633285,-500.0,0.00016437,2]
[351234760,1738464633295,-500.0,0.00016437,2]
[351234761,1738464633305,-500.0,0.00016437,2]
[351234762,1738464633316,-500.0,0.00016437,2]
[351234763,1738464633327,-500.0,0.00016437,2]
[351234764,1738464633337,-500.0,0.00016437,2]
[351234765,1738464633347,-637.02546575,0.00016437,2]
[351234766,1738464633358,-500.0,0.00016437,2]
[351234767,1738464633368,-500.0,0.00016437,2]
[351234768,1738464633379,-500.0,0.00016437,2]
[351234769,1738464633390,-500.0,0.00016437,2]
[351234770,1738464633400,-500.0,0.00016437,2]
[351234771,1738464633410,-225.0662244,0.00016437,2]
[351234772,1738464633424,-396.91811775,0.00016437,2]
[351234773,1738464633435,-500.0,0.00016437,2]
[351234774,1738464633445,-500.0,0.00016437,2]
[351234775,1738464633456,-152.54200364,0.00016437,2]
[351234776,1738464633466,-500.0,0.00016437,2]
[351234777,1738464633476,-500.0,0.00016437,2]
[351234778,1738464633487,-500.0,0.00016437,2]
[351234779,1738464633497,-500.0,0.00016437,2]
[351234780,1738464633508,-590.11485747,0.00016437,2]
[351234781,1738464633518,-418.28976182,0.00016437,2]
[351234782,1738464633527,-503.07686475,0.00016437,2]
[351234783,1738464633537,-500.0,0.00016437,2]
[351234784,1738464633547,-500.0,0.00016437,2]
[351234785,1738464633556,-500.0,0.00016437,2]
[351234786,1738464633566,-187.33544393,0.00016437,2]
[351234787,1738464633576,-500.0,0.00016437,2]
[351234788,1738464633585,-365.05846708,0.00016437,2]
[351234789,1738464633595,-213.20994231,0.00016437,2]
[351234790,1738464633604,-500.0,0.00016438,2]
[351234791,1738464633614,-501.59178031,0.00016438,2]
[351234792,1738464633623,-500.0,0.00016438,2]
[351234793,1738464633635,-473.05925283,0.00016438,2]
[351234794,1738464633644,-500.0,0.00016438,2]
[351234795,1738464633653,-180.63010357,0.00016438,2]
[351234796,1738464633663,-502.59485842,0.00016438,2]
[351234797,1738464633673,-500.0,0.00016438,2]
[351234798,1738464633682,-501.39048032,0.00016438,2]
[351234799,1738464633692,-647.54424529,0.00016438,2]
[351234800,1738464633702,-500.0,0.00016438,2]
[351234801,1738464633712,-500.0,0.00016438,2]
[351234802,1738464633722,-500.0,0.00016438,2]
[351234803,1738464633732,-500.0,0.00016438,2]
[351234804,1738464633742,-500.0,0.00016438,2]
[351234805,1738464633751,-165.5269752,0.00016438,2]
[351234806,1738464633761,-500.0,0.00016438,2]
[351234807,1738464633771,-501.95270964,0.00016438,2]
[351234808,1738464633782,-500.6529492,0.00016438,2]
[351234809,1738464633792,-501.33041523,0.00016438,2]
[351234810,1738464633802,-182.13435673,0.00016438,2]
[351234811,1738464633812,-500.0,0.00016438,2]
[351234812,1738464633823,-500.0,0.00016438,2]
[351234813,1738464633833,-500.0,0.00016438,2]
[351234814,1738464633843,-500.0,0.00016438,2]
[351234815,1738464633853,-500.0,0.00016438,2]
[351234816,1738464633863,-502.82422623,0.00016438,2]
[351234817,1738464633873,-501.67665303,0.00016438,2]
[351234818,1738464633883,-502.34870789,0.00016438,2]
[351234819,1738464633893,-500.0,0.00016438,2]
[351234820,1738464633903,-500.0,0.00016438,2]
[351234821,1738464633913,-500.0,0.00016438,2]
[351234822,1738464633922,-500.0,0.00016438,2]
[351234823,1738464633931,-501.66583139,0.00016438,2]
[351234824,1738464633941,-500.0,0.00016438,2]
[351234825,1738464633951,-511.78328254,0.00016438,2]
[351234826,1738464633960,-151.16956064,0.00016438,2]
[351234827,1738464633969,-500.62010391,0.00016438,2]
[351234828,1738464633979,-500.0,0.00016438,2]
[351234829,1738464633990,-506.36684317,0.00016438,2]
[351234830,1738464634000,-503.07262078,0.00016438,2]
[351234831,1738464634012,-500.0,0.00016438,2]
[351234832,1738464634023,-502.69733225,0.00016438,2]
[351234833,1738464634033,-500.0,0.00016438,2]
[351234834,1738464634043,-500.68242282,0.00016438,2]
[351234835,1738464634055,-501.17952896,0.00016438,2]
[351234836,1738464634065,-500.34728292,0.00016438,2]
[351234837,1738464634075,-500.0,0.00016438,2]
[351234838,1738464634086,-215.53841817,0.00016438,2]
[351234839,1738464634096,-500.0,0.00016438,2]
[351234840,1738464634107,-507.07363356,0.00016438,2]
[351234841,1738464634117,-193.91954818,0.00016438,2]
[351234842,1738464634127,-503.16157599,0.00016438,2]
[351234843,1738464634137,-501.50870568,0.00016438,2]
[351234844,1738464634148,-501.52075291,0.00016438,2]
[351234845,1738464634158,-501.44820302,0.00016438,2]
[351234846,1738464634168,-500.0,0.00016438,2]
[351234847,1738464634179,-500.0,0.00016438,2]
[351234848,1738464634189,-500.0,0.00016438,2]
[351234849,1738464634199,-502.76632026,0.00016438,2]
[351234850,1738464634209,-500.0,0.00016438,2]
[351234851,1738464634221,-501.684187,0.00016438,2]
[351234852,1738464634234,-500.0,0.00016438,2]
[351234853,1738464634244,-500.0,0.00016438,2]
[351234854,1738464634253,-503.59765994,0.00016438,2]
[351234855,1738464634262,-500.0,0.00016438,2]
[351234856,1738464634272,-500.0,0.00016438,2]
[351234857,1738464634281,-500.0,0.00016438,2]
[351234858,1738464634291,-500.0,0.00016438,2]
[351234859,1738464634301,-201.82556305,0.00016438,2]
[351234860,1738464634311,-507.52877258,0.00016438,2]
[351234861,1738464634321,-503.12813495,0.00016438,2]
[351234862,1738464634331,-500.0,0.00016438,2]
[351234863,1738464634342,-211.48221916,0.00016438,2]
[351234864,1738464634352,-500.0,0.00016438,2]
[351234865,1738464634362,-500.0,0.00016438,2]
[351234866,1738464634372,-500.0,0.00016438,2]
[351234867,1738464634385,-500.0,0.00016438,2]
[351234868,1738464634396,-500.0,0.00016438,2]
[351234869,1738464634407,-504.39787717,0.00016438,2]
[351234870,1738464634419,-502.90075597,0.00016438,2]
[351234871,1738464634429,-500.0,0.00016438,2]
[351234872,1738464634439,-500.0,0.00016438,2]
[351234873,1738464634451,-501.68139643,0.00016438,2]
[351234874,1738464634460,-500.0,0.00016438,2]
[351234875,1738464634471,-505.45728292,0.00016438,2]